bitfinex/quotes_BTCUSD_20240818
["timestamp","ask_amount","ask_price","bid_price","bid_amount"]
[1723996384808,0.821228,60032.0,60031.0,0.0009075]
[1723996384962,1.51893267,60032.0,60031.0,0.0009075]
[1723996385162,1.56557611,60032.0,60031.0,0.0009075]
[1723996385363,1.79978411,60032.0,60031.0,0.0009075]
[1723996385798,1.80219301,60032.0,60031.0,0.0009075]
[1723996386213,1.75550962,60032.0,60031.0,0.0009075]
[1723996386435,1.83630962,60032.0,60031.0,0.0009075]
[1723996387251,2.21117847,60032.0,60031.0,0.0009075]
[1723996387586,2.21617847,60032.0,60031.0,0.0019075]
[1723996387837,2.21717847,60032.0,60031.0,0.0019075]
[1723996388190,2.31702525,60032.0,60031.0,0.0019075]
[1723996388396,2.31702525,60032.0,60031.0,0.0009075]
[1723996388397,2.31102525,60032.0,60031.0,0.0009075]
[1723996388628,2.32202525,60032.0,60031.0,0.0019075]
[1723996388991,2.32102525,60032.0,60031.0,0.0019075]
[1723996389174,2.22117847,60032.0,60031.0,0.0019075]
[1723996389789,2.23317847,60032.0,60031.0,0.0019075]
[1723996390196,2.30803419,60032.0,60031.0,0.0019075]
[1723996390394,2.07482619,60032.0,60031.0,0.0019075]
[1723996391196,1.99997047,60032.0,60031.0,0.0019075]
[1723996395288,2.17152501,60032.0,60031.0,0.0019075]
[1723996395921,1.99997047,60032.0,60031.0,0.0019075]
[1723996396063,1.99897047,60032.0,60031.0,0.0019075]
[1723996396463,1.99697047,60032.0,60031.0,0.0019075]
[1723996396694,1.53976247,60032.0,60031.0,0.0019075]
[1723996396994,1.59756247,60032.0,60031.0,0.0019075]
[1723996397154,1.59856247,60032.0,60031.0,0.0019075]
[1723996397527,1.60056247,60032.0,60031.0,0.0019075]
[1723996398087,1.59756247,60032.0,60031.0,0.0019075]
[1723996398724,1.62056247,60032.0,60031.0,0.0019075]
[1723996400115,1.53976247,60032.0,60031.0,0.0019075]
[1723996400320,0.95034647,60032.0,60031.0,0.0673075]
[1723996400504,1.1879689,60032.0,60031.0,0.1432075]
[1723996401703,1.2879689,60032.0,60031.0,0.1432075]
[1723996404344,1.36434911,60032.0,60031.0,0.1432075]
[1723996405186,1.59855711,60032.0,60031.0,0.0673075]
[1723996405467,1.59855711,60032.0,60031.0,0.0019075]
[1723996405468,1.62055711,60032.0,60031.0,0.0019075]
[1723996407714,1.62138211,60032.0,60031.0,0.0019075]
[1723996407887,1.85723665,60032.0,60031.0,0.0019075]
[1723996408070,1.79293665,60032.0,60031.0,0.0019075]
[1723996408315,1.62138211,60032.0,60031.0,0.0019075]
[1723996409214,1.62138211,60032.0,60031.0,0.1432075]
[1723996409878,1.5450019,60032.0,60031.0,0.1432075]
[1723996413135,1.2887939,60032.0,60031.0,0.1432075]
[1723996426621,1.0555859,60032.0,60031.0,0.1432075]
[1723996427551,1.0555859,60032.0,60031.0,0.2598135]
[1723996427552,0.5249739,60032.0,60031.0,0.2598135]
[1723996427961,0.5249739,60032.0,60031.0,0.26725159]
[1723996428621,0.5249739,60032.0,60031.0,0.26625159]
[1723996428622,0.5029739,60032.0,60031.0,0.26625159]
[1723996429046,0.5039739,60032.0,60031.0,0.26725159]
[1723996432500,0.5039739,60032.0,60031.0,0.73367559]
[1723996433858,0.4789739,60032.0,60031.0,0.50046359]
[1723996440402,0.4789739,60032.0,60031.0,0.15064559]
[1723996440620,0.8287859,60032.0,60031.0,0.15064559]
[1723996440845,0.5955779,60032.0,60031.0,0.15064559]
[1723996441481,0.8287859,60032.0,60031.0,0.15064559]
[1723996441682,0.5955779,60032.0,60031.0,0.15064559]
[1723996441902,0.9095859,60032.0,60031.0,0.15064559]
[1723996442309,0.9095859,60032.0,60031.0,0.1432075]
[1723996442568,0.9095859,60032.0,60031.0,0.15061274]
[1723996443541,0.9095859,60032.0,60031.0,0.0673075]
[1723996443919,0.9095859,60032.0,60031.0,0.07471274]
[1723996444127,0.98598062,60032.0,60031.0,0.07471274]
[1723996444318,0.9095859,60032.0,60031.0,0.07471274]
[1723996444788,0.9095859,60032.0,60031.0,0.07371274]
[1723996445326,0.98598096,60032.0,60031.0,0.15281274]
[1723996445527,0.9095859,60032.0,60031.0,0.15281274]
[1723996445926,0.9095859,60032.0,60031.0,0.15381274]
[1723996446203,0.9085859,60032.0,60031.0,0.15381274]
[1723996446386,0.8277859,60032.0,60031.0,0.15381274]
[1723996447582,0.8287859,60032.0,60031.0,0.15381274]
[1723996455888,0.8287859,60032.0,60031.0,0.07471274]
[1723996457148,0.8287859,60032.0,60031.0,0.09508222]
[1723996458174,0.8287859,60032.0,60031.0,0.00931274]
[1723996458603,0.8287859,60032.0,60031.0,0.0222736]
[1723996460748,0.5955779,60032.0,60031.0,0.0019075]
[1723996460971,0.4789739,60032.0,60031.0,0.02227338]
[1723996461173,0.4789739,60032.0,60031.0,0.16387338]
[1723996462297,0.5955779,60032.0,60031.0,0.17123498]
[1723996465237,0.8287859,60032.0,60031.0,0.02963498]
[1723996465714,0.8287859,60032.0,60031.0,0.02227338]
[1723996472156,0.8287859,60032.0,60031.0,0.09837338]
[1723996472284,0.5955779,60032.0,60031.0,0.16387338]
[1723996473469,0.8287859,60032.0,60031.0,0.02227338]
[1723996473673,1.28498747,60032.0,60031.0,0.0019075]
[1723996473872,1.51819547,60032.0,60031.0,0.0019075]
[1723996475529,1.54119547,60032.0,60031.0,0.0019075]
[1723996475853,1.5514595,60032.0,60031.0,0.0019075]
[1723996476262,1.5544595,60032.0,60031.0,0.0019075]
[1723996476481,1.6514595,60032.0,60031.0,0.0019075]
[1723996476913,2.06122204,60032.0,60031.0,0.0019075]
[1723996477125,2.18630576,60032.0,60031.0,0.0019075]
[1723996477333,2.06122204,60032.0,60031.0,0.0019075]
[1723996477747,2.06122204,60032.0,60031.0,0.0009075]
[1723996477945,1.8896675,60032.0,60031.0,0.0009075]
[1723996478244,1.8986675,60032.0,60031.0,0.0009075]
[1723996478446,1.9856623,60032.0,60031.0,0.0009075]
[1723996478657,1.9886623,60032.0,60031.0,0.0009075]
[1723996478766,1.9986623,60032.0,60031.0,0.0009075]
[1723996479175,1.9976623,60032.0,60031.0,0.0009075]
[1723996479386,1.8986675,60032.0,60031.0,0.0009075]
[1723996479592,1.8976675,60032.0,60031.0,0.0009075]
[1723996479806,1.9096675,60032.0,60031.0,0.0009075]
[1723996480018,1.9076675,60032.0,60031.0,0.0009075]
[1723996480243,2.30580931,60032.0,60031.0,0.0009075]
[1723996480447,2.30580931,60032.0,60019.0,0.0009075]
[1723996480448,0.811837,60020.0,60019.0,0.0009075]
[1723996480686,1.69563447,60020.0,60019.0,0.0009075]
[1723996480889,1.71863447,60020.0,60019.0,0.0009075]
[1723996481739,1.72263447,60020.0,60019.0,0.0009075]
[1723996482089,1.72463447,60020.0,60019.0,0.0009075]
[1723996483388,1.73479842,60020.0,60019.0,0.0009075]
[1723996483538,1.89321377,60020.0,60019.0,0.0009075]
[1723996483747,1.88921377,60020.0,60019.0,0.0009075]
[1723996483954,2.12246877,60020.0,60019.0,0.0009075]
[1723996484640,2.12946877,60020.0,60019.0,0.0009075]
[1723996485197,2.12746877,60020.0,60019.0,0.0009075]
[1723996485375,2.0560752,60020.0,60019.0,0.0009075]
[1723996485574,1.89765985,60020.0,60019.0,0.0009075]
[1723996485862,1.89265985,60020.0,60019.0,0.0009075]
[1723996486288,1.90265985,60020.0,60019.0,0.0009075]
[1723996486707,1.89565985,60020.0,60019.0,0.0009075]
[1723996486913,1.90765985,60020.0,60019.0,0.0009075]
[1723996487911,2.07921439,60020.0,60019.0,0.0009075]
[1723996489482,1.90765985,60020.0,60019.0,0.0009075]
[1723996489910,1.90965985,60020.0,60019.0,0.0009075]
[1723996492560,1.91265985,60020.0,60019.0,0.0009075]
[1723996492710,1.90965985,60020.0,60019.0,0.0009075]
[1723996492916,1.91265985,60020.0,60019.0,0.0009075]
[1723996493111,2.08421439,60020.0,60019.0,0.0009075]
[1723996493317,2.07221439,60020.0,60019.0,0.0009075]
[1723996494121,2.08621439,60020.0,60019.0,0.0009075]
[1723996494321,2.07621439,60020.0,60019.0,0.0009075]
[1723996494527,2.09021439,60020.0,60019.0,0.0009075]
[1723996495502,2.07621439,60020.0,60019.0,0.0009075]
[1723996495905,2.09021439,60020.0,60019.0,0.0009075]
[1723996496313,2.16561428,60020.0,60019.0,0.0009075]
[1723996496512,2.16361428,60020.0,60019.0,0.0009075]
[1723996498002,2.16661428,60020.0,60019.0,0.0009075]
[1723996498259,2.16361428,60020.0,60019.0,0.0009075]
[1723996499477,2.16661428,60020.0,60019.0,0.0009075]
[1723996500670,2.16361428,60020.0,60019.0,0.0009075]
[1723996500908,0.118631,60018.0,60017.0,0.0009075]
[1723996501046,0.118631,60018.0,60004.0,0.0626]
[1723996501047,0.349969,60005.0,60004.0,0.0626]
[1723996501224,1.1412309,60005.0,60004.0,0.0626]
[1723996501432,1.3745439,60005.0,60004.0,0.0626]
[1723996502092,0.816623,60003.0,60002.0,0.1404]
[1723996502316,1.2937719,60003.0,60002.0,0.0626]
[1723996502518,0.583322,60001.0,60000.0,0.1404]
[1723996502727,1.1412709,60001.0,60000.0,0.1404]
[1723996503139,1.1412709,60001.0,60000.0,0.0626]
[1723996503140,1.3745999,60001.0,60000.0,0.0626]
[1723996503360,0.583332,60000.0,59999.0,0.0009064]
[1723996503561,1.3468139,60000.0,59999.0,0.0009064]
[1723996504948,1.4468139,60000.0,59999.0,0.0009064]
[1723996505370,1.4168139,60000.0,59999.0,0.0009064]
[1723996505585,1.2642809,60000.0,59999.0,0.1413064]
[1723996506845,1.5046139,60000.0,59999.0,0.1413064]
[1723996508313,1.5126139,60000.0,59999.0,0.1413064]
[1723996509669,1.2562809,60000.0,59999.0,0.1413064]
[1723996510157,1.0229479,60000.0,59999.0,0.1413064]
[1723996511719,1.2562809,60000.0,59999.0,0.0009064]
[1723996512199,1.4896139,60000.0,59999.0,0.0009064]
[1723996513234,1.5126139,60000.0,59999.0,0.0009064]
[1723996523717,1.5426139,60000.0,59999.0,0.0009064]
[1723996523931,1.6868139,60000.0,59999.0,0.0009064]
[1723996524158,1.76297367,60000.0,59999.0,0.0009064]
[1723996524830,1.99630667,60000.0,59999.0,0.0009064]
[1723996527691,1.99730667,60000.0,59999.0,0.0009064]
[1723996527899,2.16886121,60000.0,59999.0,0.0009064]
[1723996529204,2.16986121,60000.0,59999.0,0.0009064]
[1723996529418,2.36986121,60000.0,59999.0,0.0009064]
[1723996530270,2.36886121,60000.0,59999.0,0.0009064]
[1723996531652,2.36986121,60000.0,59999.0,0.0009064]
[1723996532137,2.37286121,60000.0,59999.0,0.0009064]
[1723996533110,2.35786121,60000.0,59999.0,0.0009064]
[1723996533354,2.37186121,60000.0,59999.0,0.0009064]
[1723996534270,2.38586121,60000.0,59999.0,0.0009064]
[1723996536199,2.61919421,60000.0,59999.0,0.0009064]
[1723996537895,1.052084,59995.0,59992.0,0.0009064]
[1723996538124,1.95259267,59995.0,59992.0,0.0009064]
[1723996539210,1.96359267,59995.0,59992.0,0.0009064]
[1723996539411,1.96659267,59995.0,59992.0,0.0009064]
[1723996539637,1.97959267,59995.0,59992.0,0.0009064]
[1723996539835,2.11581423,59995.0,59992.0,0.0009064]
[1723996540047,2.11381423,59995.0,59992.0,0.0009064]
[1723996543976,1.42552,59993.0,59992.0,0.0009064]
[1723996544239,2.10182867,59993.0,59992.0,0.0009064]
[1723996544449,2.27338321,59993.0,59992.0,0.0009064]
[1723996544663,0.03,59982.0,59980.0,0.0603]
[1723996544875,0.9310589,59981.0,59980.0,0.0603]
[1723996545520,1.3978729,59981.0,59980.0,0.0603]
[1723996546579,1.3978729,59981.0,59980.0,0.1363]
[1723996546783,1.4028729,59981.0,59980.0,0.1363]
[1723996546990,1.4098729,59981.0,59980.0,0.1363]
[1723996551572,1.4098729,59981.0,59980.0,0.1372075]
[1723996558551,1.40498681,59981.0,59980.0,0.1372075]
[1723996558754,1.48578681,59981.0,59980.0,0.1372075]
[1723996563826,1.40498681,59981.0,59980.0,0.1372075]
[1723996564055,1.48578681,59981.0,59980.0,0.1372075]
[1723996574577,0.56506281,59981.0,59980.0,0.1372075]
[1723996574779,0.56506281,59981.0,59980.0,0.2539125]
[1723996574951,0.4891489,59981.0,59980.0,0.4873235]
[1723996575154,0.4891489,59981.0,59980.0,0.50775078]
[1723996575478,0.4891489,59981.0,59980.0,0.27433978]
[1723996575479,0.4821489,59981.0,59980.0,0.27433978]
[1723996575864,0.4891489,59981.0,59980.0,0.15763478]
[1723996576277,0.4891489,59981.0,59980.0,0.15763307]
[1723996576487,0.4821489,59981.0,59980.0,0.15763307]
[1723996576704,0.4781489,59981.0,59980.0,0.15763307]
[1723996577109,0.4831489,59981.0,59980.0,0.15763307]
[1723996577312,0.4781489,59981.0,59980.0,0.15763307]
[1723996577628,0.4791489,59981.0,59980.0,0.15763307]
[1723996579321,0.4791489,59981.0,59980.0,0.1372075]
[1723996579541,0.4791489,59981.0,59980.0,0.15763417]
[1723996580450,0.4791489,59981.0,59980.0,0.1372075]
[1723996582093,0.4791489,59981.0,59980.0,0.15763392]
[1723996582247,0.4791489,59981.0,59980.0,0.1372075]
[1723996583530,0.5958519,59981.0,59980.0,0.1372075]
[1723996583733,1.38707819,59981.0,59980.0,0.0009075]
[1723996583878,1.46298256,59981.0,59980.0,0.0009075]
[1723996584691,1.37197727,59981.0,59980.0,0.0009075]
[1723996585010,1.45177727,59981.0,59980.0,0.0009075]
[1723996585218,1.45477727,59981.0,59980.0,0.0009075]
[1723996585372,1.46177727,59981.0,59980.0,0.0009075]
[1723996585593,1.45777727,59981.0,59980.0,0.0009075]
[1723996585796,1.46077727,59981.0,59980.0,0.0009075]
[1723996585998,1.45377727,59981.0,59980.0,0.0009075]
[1723996586195,1.45877727,59981.0,59980.0,0.0009075]
[1723996586404,1.37797727,59981.0,59980.0,0.0009075]
[1723996586634,1.3828729,59981.0,59980.0,0.0009075]
[1723996587006,1.1494659,59981.0,59980.0,0.0009075]
[1723996587213,1.1494659,59981.0,59980.0,0.0775075]
[1723996588033,1.0686659,59981.0,59980.0,0.1419075]
[1723996593169,0.8352589,59981.0,59980.0,0.1419075]
[1723996593365,0.8352589,59981.0,59980.0,0.2586125]
[1723996593366,0.4851489,59981.0,59980.0,0.2586125]
[1723996593563,0.4851489,59981.0,59980.0,0.1419075]
[1723996594308,0.4851489,59981.0,59980.0,0.2586125]
[1723996594891,0.4851489,59981.0,59980.0,0.1419075]
[1723996599053,0.6018519,59981.0,59980.0,0.1419075]
[1723996599255,0.6826519,59981.0,59980.0,0.1419075]
[1723996600274,0.9160589,59981.0,59980.0,0.1419075]
[1723996600481,1.1494659,59981.0,59980.0,0.0653075]
[1723996603272,0.8352589,59981.0,59980.0,0.0653075]
[1723996603686,1.0686659,59981.0,59980.0,0.0653075]
[1723996603890,0.8352589,59981.0,59980.0,0.1483075]
[1723996609288,1.0686659,59981.0,59980.0,0.0009075]
[1723996609499,1.21982715,59981.0,59980.0,0.0009075]
[1723996609921,1.1445825,59981.0,59980.0,0.0009075]
[1723996610768,1.3779895,59981.0,59980.0,0.0009075]
[1723996611612,1.5705895,59981.0,59980.0,0.0009075]
[1723996612233,1.58085085,59981.0,59980.0,0.0009075]
[1723996618038,1.5117895,59981.0,59980.0,0.0009075]
[1723996619491,1.4817895,59981.0,59980.0,0.0009075]
[1723996622196,1.4817895,59981.0,59980.0,0.1450075]
[1723996622197,0.6777685,59981.0,59980.0,0.1450075]
[1723996622407,0.8352589,59981.0,59980.0,0.1450075]
[1723996627940,0.6018519,59981.0,59980.0,0.1450075]
[1723996631203,0.8352589,59981.0,59980.0,0.1450075]
[1723996631787,0.91117336,59981.0,59980.0,0.1450075]
[1723996633831,0.91117336,59981.0,59980.0,0.0642075]
[1723996634587,1.14458036,59981.0,59980.0,0.0642075]
[1723996636757,1.14458036,59981.0,59980.0,0.0009075]
[1723996640428,1.22488036,59981.0,59980.0,0.0009075]
[1723996640643,1.45828736,59981.0,59980.0,0.0009075]
[1723996641464,1.37798736,59981.0,59980.0,0.0009075]
[1723996641675,1.63965789,59981.0,59980.0,0.0009075]
[1723996643141,1.48128736,59981.0,59980.0,0.0009075]
[1723996660087,1.40098736,59981.0,59980.0,0.0613075]
[1723996664954,1.40098736,59981.0,59980.0,0.0009075]
[1723996680586,1.45107935,59981.0,59980.0,0.0009075]
[1723996681614,1.40098736,59981.0,59980.0,0.0009075]
[1723996682347,1.14458036,59981.0,59980.0,0.0814075]
[1723996682550,1.22538036,59981.0,59980.0,0.1436075]
[1723996687752,1.22538036,59981.0,59980.0,0.0009075]
[1723996689416,1.384348,59981.0,59980.0,0.0009075]
[1723996689725,1.22538036,59981.0,59980.0,0.0009075]
[1723996691867,1.23535615,59981.0,59980.0,0.0009075]
[1723996692680,1.46876315,59981.0,59980.0,0.0009075]
[1723996693030,1.49176315,59981.0,59980.0,0.0009075]
[1723996696373,1.49154359,59981.0,59980.0,0.0009075]
[1723996697416,1.4815678,59981.0,59980.0,0.0009075]
[1723996699929,1.1443608,59981.0,59980.0,0.0836075]
[1723996700129,1.2251608,59981.0,59980.0,0.0836075]
[1723996700576,1.2251608,59981.0,59980.0,0.1481075]
[1723996701387,0.6775468,59981.0,59980.0,0.1481075]
[1723996701567,0.6775468,59981.0,59980.0,0.15570635]
[1723996702568,0.60163234,59981.0,59980.0,0.15570635]
[1723996703109,0.83503934,59981.0,59980.0,0.15570635]
[1723996704092,1.06844634,59981.0,59980.0,0.15570635]
[1723996704656,1.06844634,59981.0,59980.0,0.0654075]
[1723996706763,1.06844634,59981.0,59980.0,0.1481075]
[1723996711229,1.06844634,59981.0,59980.0,0.16855288]
[1723996711230,0.48492934,59981.0,59980.0,0.16855288]
[1723996711455,0.60163234,59981.0,59980.0,0.16855288]
[1723996712118,0.83503934,59981.0,59980.0,0.16855288]
[1723996713154,0.83503934,59981.0,59980.0,0.17614669]
[1723996713526,0.48492934,59981.0,59980.0,0.17614669]
[1723996713761,0.60163234,59981.0,59980.0,0.17614669]
[1723996713998,0.60163234,59981.0,59980.0,0.17614531]
[1723996714954,0.60163234,59981.0,59980.0,0.17614592]
[1723996715905,0.60245734,59981.0,59980.0,0.17614592]
[1723996718129,0.60245734,59981.0,59980.0,0.17614611]
[1723996722376,0.60245734,59981.0,59980.0,0.17614563]
[1723996722815,0.60245734,59981.0,59980.0,0.15570131]
[1723996723048,0.60245734,59981.0,59980.0,0.17614547]
[1723996723496,0.60245734,59981.0,59980.0,0.15570131]
[1723996723716,0.60245734,59981.0,59980.0,0.17614544]
[1723996726303,0.48575434,59981.0,59980.0,0.17614544]
[1723996726515,0.60245734,59981.0,59980.0,0.17614544]
[1723996727130,0.48575434,59981.0,59980.0,0.17614544]
[1723996727577,0.60245734,59981.0,59980.0,0.17614544]
[1723996728412,0.83586434,59981.0,59980.0,0.17614544]
[1723996731153,0.60245734,59981.0,59980.0,0.17614544]
[1723996732015,0.83586434,59981.0,59980.0,0.17614544]
[1723996732220,0.83586434,59981.0,59980.0,0.09344544]
[1723996733311,0.83586434,59981.0,59980.0,0.09004544]
[1723996734556,0.83586434,59981.0,59980.0,0.06960131]
[1723996734836,0.83586434,59981.0,59980.0,0.09004017]
[1723996735058,0.83586434,59981.0,59980.0,0.06960131]
[1723996735304,0.83586434,59981.0,59980.0,0.09004176]
[1723996736240,0.83586434,59981.0,59980.0,0.09004113]
[1723996737095,0.83586434,59981.0,59980.0,0.02894113]
[1723996738750,0.83586434,59981.0,59980.0,0.00850131]
[1723996738905,0.83586434,59981.0,59980.0,0.02894208]
[1723996739108,0.83586434,59981.0,59980.0,0.02134827]
[1723996739847,0.83544401,59981.0,59980.0,0.02134827]
[1723996740121,0.83544401,59981.0,59980.0,0.02894532]
[1723996741350,1.06885101,59981.0,59980.0,0.02894532]
[1723996741584,1.21295101,59981.0,59980.0,0.00850455]
[1723996741761,1.21295101,59981.0,59980.0,0.02134803]
[1723996742306,1.14905101,59981.0,59980.0,0.02134803]
[1723996742898,1.06885101,59981.0,59980.0,0.02134803]
[1723996743604,1.06885101,59981.0,59980.0,0.02894508]
[1723996744387,0.83544401,59981.0,59980.0,0.02894508]
[1723996745550,0.83544401,59981.0,59980.0,0.00850455]
[1723996745835,0.83544401,59981.0,59980.0,0.02894479]
[1723996746037,0.83544401,59981.0,59980.0,0.00850455]
[1723996746272,0.83544401,59981.0,59980.0,0.02894442]
[1723996746475,0.83544401,59981.0,59980.0,0.02134737]
[1723996747893,0.83544401,59981.0,59980.0,0.02134797]
[1723996749790,0.83544401,59981.0,59980.0,0.02894502]
[1723996750021,0.83544401,59981.0,59980.0,0.00850455]
[1723996750194,0.83544401,59981.0,59980.0,0.02894544]
[1723996754071,0.83544401,59981.0,59980.0,0.02894809]
[1723996758424,0.83544401,59981.0,59980.0,0.00850455]
[1723996759512,0.83544401,59981.0,59980.0,0.02894835]
[1723996759708,0.83544401,59981.0,59980.0,0.00850455]
[1723996761147,0.83544401,59981.0,59980.0,0.02894835]
[1723996765604,0.91136508,59981.0,59980.0,0.02894835]
[1723996773328,0.91136508,59981.0,59980.0,0.02895771]
[1723996776843,0.91136508,59981.0,59980.0,0.02895984]
[1723996778887,1.14477208,59981.0,59980.0,0.02895984]
[1723996779113,0.91136508,59981.0,59980.0,0.02895984]
[1723996784093,1.14477208,59981.0,59980.0,0.02895984]
[1723996784298,0.91136508,59981.0,59980.0,0.02895984]
[1723996784500,0.83544401,59981.0,59980.0,0.02895984]
[1723996785729,0.83544401,59981.0,59980.0,0.00850455]
[1723996785879,0.83544401,59981.0,59980.0,0.02896174]
[1723996786114,0.83544401,59981.0,59980.0,0.00850455]
[1723996786302,0.83544401,59981.0,59980.0,0.02896191]
[1723996786920,0.60203701,59981.0,59980.0,0.10746191]
[1723996787119,0.83544401,59981.0,59980.0,0.17156191]
[1723996787404,0.83544401,59981.0,59980.0,0.17156204]
[1723996788214,1.06885101,59981.0,59980.0,0.17156204]
[1723996793223,0.83544401,59981.0,59980.0,0.17156204]
[1723996797173,0.83544401,59981.0,59980.0,0.60247804]
[1723996797174,0.48533401,59981.0,59980.0,0.60247804]
[1723996797408,0.48533401,59981.0,59980.0,1.39212376]
[1723996797647,0.48533401,59981.0,59980.0,1.27637097]
[1723996797879,0.48533401,59981.0,59980.0,1.26721408]
[1723996798127,0.48533401,59981.0,59980.0,1.21979573]
[1723996798128,0.48033401,59981.0,59980.0,1.21979573]
[1723996798341,0.47733401,59981.0,59980.0,1.27634378]
[1723996798799,0.47833401,59981.0,59980.0,1.27634378]
[1723996799271,0.47833401,59981.0,59980.0,1.26716623]
[1723996799511,0.47833401,59981.0,59980.0,1.3918826]
[1723996800119,0.47833401,59981.0,59980.0,1.37343492]
[1723996800966,0.47933401,59981.0,59980.0,1.31208272]
[1723996801187,0.47933401,59981.0,59980.0,1.34748365]
[1723996801188,0.48033401,59981.0,59980.0,1.34748365]
[1723996801390,0.48033401,59981.0,59980.0,1.39488756]
[1723996802673,0.48033401,59981.0,59980.0,0.90023264]
[1723996802878,0.48033401,59981.0,59980.0,0.90938785]
[1723996803117,0.48033401,59981.0,59980.0,1.24389472]
[1723996803323,0.48033401,59981.0,59980.0,1.18562675]
[1723996803748,0.48033401,59981.0,59980.0,1.06199885]
[1723996803957,0.48033401,59981.0,59980.0,1.14279885]
[1723996804166,0.48033401,59981.0,59980.0,1.12024759]
[1723996804380,0.48033401,59981.0,59980.0,1.06199885]
[1723996806089,0.48033401,59981.0,59980.0,1.14279885]
[1723996806474,0.48033401,59981.0,59980.0,1.13364364]
[1723996806702,0.48033401,59981.0,59980.0,1.14279885]
[1723996806928,0.48033401,59981.0,59980.0,1.20104759]
[1723996807132,0.48033401,59981.0,59980.0,1.43445859]
[1723996807551,0.47733401,59981.0,59980.0,1.43145859]
[1723996807967,0.47933401,59981.0,59980.0,1.43545859]
[1723996808383,0.47933401,59981.0,59980.0,1.37720985]
[1723996808814,0.47933401,59981.0,59980.0,1.37820056]
[1723996809015,0.47933401,59981.0,59980.0,1.38020056]
[1723996809699,0.47933401,59981.0,59980.0,1.6537551]
[1723996809907,0.47933401,59981.0,59980.0,1.6497551]
[1723996810110,0.002825,59981.0,59980.0,1.6497551]
[1723996810543,0.002825,59981.0,59980.0,1.88313484]
[1723996811218,0.002825,59981.0,59980.0,1.88713484]
[1723996811402,0.000825,59992.0,59991.0,1.040688]
[1723996811636,0.000825,59992.0,59991.0,1.45482013]
[1723996811848,1e-08,59992.0,59991.0,1.64391512]
[1723996812506,1e-08,59992.0,59991.0,1.61902773]
[1723996813400,1e-08,59992.0,59991.0,1.51047989]
[1723996814232,1e-08,59992.0,59991.0,1.51044831]
[1723996814406,1e-08,59992.0,59991.0,1.58495144]
[1723996814630,1e-08,59992.0,59991.0,1.55801687]
[1723996814846,1e-08,59992.0,59991.0,1.58494653]
[1723996815086,1e-08,59992.0,59991.0,1.56201196]
[1723996815324,1e-08,59992.0,59991.0,1.14462055]
[1723996815563,1e-08,59992.0,59991.0,1.11868598]
[1723996816484,1e-08,59992.0,59991.0,1.16833278]
[1723996816703,1e-08,59992.0,59991.0,1.16733278]
[1723996817969,1e-08,59992.0,59991.0,1.17533278]
[1723996818183,1e-08,59992.0,59991.0,1.17533308]
[1723996818404,1e-08,59992.0,59991.0,1.12568628]
[1723996821189,1e-08,59992.0,59991.0,1.12572776]
[1723996821392,1e-08,59992.0,59991.0,1.20652776]
[1723996822257,1e-08,59992.0,59991.0,1.23348384]
[1723996822466,1e-08,59992.0,59991.0,0.85796629]
[1723996822696,0.08080001,59992.0,59991.0,0.012]
[1723996822905,0.57664601,59992.0,59991.0,0.012]
[1723996825719,0.81001001,59992.0,59991.0,0.012]
[1723996827016,0.81001001,59992.0,59991.0,0.004]
[1723996827219,0.116693,59986.0,59981.0,0.116702]
[1723996827433,0.0799,59985.0,59982.0,0.02046484]
[1723996827643,0.0799,59985.0,59983.0,0.02046484]
[1723996827859,0.0799,59985.0,59984.0,0.02046484]
[1723996829296,0.0799,59985.0,59984.0,0.02446484]
[1723996829864,0.0799,59985.0,59984.0,0.03146484]
[1723996830374,0.1458,59985.0,59984.0,0.03146484]
[1723996830577,0.1458,59985.0,59984.0,0.02746484]
[1723996830792,0.1458,59985.0,59984.0,0.03046484]
[1723996830940,0.262495,59985.0,59984.0,0.03046484]
[1723996831374,0.262495,59985.0,59984.0,0.02746484]
[1723996831568,0.262495,59985.0,59984.0,0.03146484]
[1723996831767,0.1458,59985.0,59984.0,0.03146484]
[1723996834029,0.1458,59985.0,59984.0,0.03237234]
[1723996834862,0.1458,59985.0,59984.0,0.0119075]
[1723996835080,0.1458,59985.0,59984.0,0.03237344]
[1723996835292,0.495886,59985.0,59984.0,0.03237344]
[1723996835504,0.495886,59985.0,59984.0,0.0119075]
[1723996837302,0.729277,59985.0,59984.0,0.0119075]
[1723996837742,0.350086,59985.0,59984.0,0.0119075]
[1723996842019,0.116695,59985.0,59984.0,0.0119075]
[1723996842263,0.350086,59985.0,59984.0,0.0119075]
[1723996845071,0.732277,59985.0,59984.0,0.0119075]
[1723996846383,0.732277,59985.0,59984.0,0.0079075]
[1723996846721,0.732277,59985.0,59984.0,0.0009075]
[1723996847159,0.733277,59985.0,59984.0,0.0009075]
[1723996847422,0.732277,59985.0,59984.0,0.0009075]
[1723996847688,0.733277,59985.0,59984.0,0.0009075]
[1723996847992,0.74315282,59985.0,59984.0,0.0009075]
[1723996848210,0.97654382,59985.0,59984.0,0.0009075]
[1723996849265,0.99954382,59985.0,59984.0,0.0009075]
[1723996850269,1.04701249,59985.0,59984.0,0.0009075]
[1723996850560,0.99954382,59985.0,59984.0,0.0009075]
[1723996851861,1.08034382,59985.0,59984.0,0.0009075]
[1723996852113,1.070468,59985.0,59984.0,0.0009075]
[1723996854746,0.837077,59985.0,59984.0,0.0009075]
[1723996854959,0.770977,59985.0,59984.0,0.0009075]
[1723996855172,0.667177,59985.0,59984.0,0.0009075]
[1723996856608,0.584477,59985.0,59984.0,0.0009075]
[1723996857049,0.584477,59985.0,59984.0,0.0213863]
[1723996857466,0.583477,59985.0,59984.0,0.0213863]
[1723996857877,0.584477,59985.0,59984.0,0.0213863]
[1723996858076,0.583477,59985.0,59984.0,0.0213863]
[1723996858513,0.583477,59985.0,59984.0,0.0009075]
[1723996858618,0.583477,59985.0,59984.0,0.02138611]
[1723996859007,0.583477,59985.0,59984.0,0.02138594]
[1723996859187,0.583477,59985.0,59984.0,0.021386]
[1723996860151,0.583477,59985.0,59984.0,0.0009075]
[1723996860551,0.583477,59985.0,59984.0,0.0029075]
[1723996861575,0.583477,59985.0,59984.0,0.023386]
[1723996862205,0.583477,59985.0,59984.0,0.0029075]
[1723996862644,0.583477,59985.0,59984.0,0.02338585]
[1723996863244,0.583477,59985.0,59984.0,0.0029075]
[1723996864292,0.725477,59985.0,59984.0,0.0029075]
[1723996864510,1.1907641,59985.0,59984.0,0.0029075]
[1723996864734,1.1887641,59985.0,59984.0,0.0029075]
[1723996864932,1.5019551,59985.0,59984.0,0.0029075]
[1723996865129,1.2685641,59985.0,59984.0,0.0029075]
[1723996865551,1.5019551,59985.0,59984.0,0.0029075]
[1723996866834,1.5019551,59985.0,59984.0,0.0009075]
[1723996867303,1.5019551,59985.0,59980.0,0.0009075]
[1723996867304,1.050331,59981.0,59980.0,0.0009075]
[1723996867505,1.273131,59981.0,59980.0,0.0009075]
[1723996867706,1.4490271,59981.0,59980.0,0.0009075]
[1723996867909,1.4720271,59981.0,59980.0,0.0009075]
[1723996870053,1.4780271,59981.0,59980.0,0.0009075]